[Event "Titled Tuesday Blitz March 01 Early 2022"]
[White "Manolache, Marius"]
[Black "Makarian, Rudik"]
[WhiteFideId "1201530"]
[BlackFideId "44105681"]
[WhiteElo "2389"]
[BlackElo "2486"]
[Result "0-1"]
[Round "02"]
[TimeControl "180+1"]
[Date "2022.03.01"]
[WhiteClock "0:00:02"]
[BlackClock "0:00:14"]

1. d4 {[%clk 0:03:00]}  Nf6 {[%clk 0:03:00]} 2. c4 {[%clk 0:02:59]}  e6 {[%clk 0:03:01]} 3. Nc3 {[%clk 0:02:57]}  Bb4 {[%clk 0:03:01]} 4. g3 {[%clk 0:02:58]}  O-O {[%clk 0:02:57]} 5. Bg2 {[%clk 0:02:57]}  d6 {[%clk 0:02:58]} 6. Nf3 {[%clk 0:02:56]}  c5 {[%clk 0:02:49]} 7. O-O {[%clk 0:02:55]}  Bxc3 {[%clk 0:02:50]} 8. bxc3 {[%clk 0:02:54]}  Nc6 {[%clk 0:02:50]} 9. Re1 {[%clk 0:02:40]}  h6 {[%clk 0:02:48]} 10. Rb1 {[%clk 0:02:37]}  Qe7 {[%clk 0:02:46]} 11. h3 {[%clk 0:02:28]}  Na5 {[%clk 0:02:43]} 12. Nd2 {[%clk 0:02:23]}  Rb8 {[%clk 0:02:41]} 13. Ba3 {[%clk 0:02:13]}  b6 {[%clk 0:02:39]} 14. e4 {[%clk 0:02:12]}  e5 {[%clk 0:02:37]} 15. Bb2 {[%clk 0:02:09]}  Ba6 {[%clk 0:02:26]} 16. Bf1 {[%clk 0:02:06]}  Rbc8 {[%clk 0:02:21]} 17. Qa4 {[%clk 0:01:59]}  Qd7 {[%clk 0:02:18]} 18. Qa3 {[%clk 0:01:58]}  Rfe8 {[%clk 0:02:14]} 19. d5 {[%clk 0:01:57]}  Rf8 {[%clk 0:02:08]} 20. Bc1 {[%clk 0:01:56]}  Nh7 {[%clk 0:01:59]} 21. Qb2 {[%clk 0:01:52]}  Rce8 {[%clk 0:01:57]} 22. Qc2 {[%clk 0:01:51]}  Bc8 {[%clk 0:01:54]} 23. Bg2 {[%clk 0:01:35]}  Qd8 {[%clk 0:01:45]} 24. Nf1 {[%clk 0:01:24]}  f5 {[%clk 0:01:44]} 25. Nd2 {[%clk 0:01:20]}  f4 {[%clk 0:01:43]} 26. Kh2 {[%clk 0:01:18]}  g5 {[%clk 0:01:38]} 27. Qd3 {[%clk 0:01:18]}  Kh8 {[%clk 0:01:38]} 28. Nf1 {[%clk 0:01:15]}  Ba6 {[%clk 0:01:37]} 29. Qf3 {[%clk 0:01:16]}  Nxc4 {[%clk 0:01:31]} 30. Qh5 {[%clk 0:01:14]}  Kg7 {[%clk 0:01:29]} 31. Nd2 {[%clk 0:01:10]}  Nxd2 {[%clk 0:01:28]} 32. Bxd2 {[%clk 0:01:10]}  Nf6 {[%clk 0:01:28]} 33. Qd1 {[%clk 0:01:08]}  Qd7 {[%clk 0:01:27]} 34. Bf3 {[%clk 0:01:06]}  Bc8 {[%clk 0:01:26]} 35. Bg2 {[%clk 0:01:04]}  Kh8 {[%clk 0:01:23]} 36. c4 {[%clk 0:01:04]}  Rf7 {[%clk 0:01:20]} 37. a4 {[%clk 0:01:04]}  Rg8 {[%clk 0:01:10]} 38. a5 {[%clk 0:01:03]}  g4 {[%clk 0:01:01]} 39. h4 {[%clk 0:01:02]}  Qd8 {[%clk 0:00:54]} 40. axb6 {[%clk 0:01:00]}  axb6 {[%clk 0:00:55]} 41. Rb3 {[%clk 0:00:58]}  Nh5 {[%clk 0:00:54]} 42. Qb1 {[%clk 0:00:56]}  Ba6 {[%clk 0:00:41]} 43. Rxb6 {[%clk 0:00:51]}  Bxc4 {[%clk 0:00:40]} 44. Rb7 {[%clk 0:00:47]}  fxg3+ {[%clk 0:00:31]} 45. fxg3 {[%clk 0:00:46]}  Rf2 {[%clk 0:00:31]} 46. Be3 {[%clk 0:00:42]}  Qf6 {[%clk 0:00:31]} 47. Rb2 {[%clk 0:00:38]}  Rf3 {[%clk 0:00:24]} 48. Bxf3 {[%clk 0:00:31]}  gxf3 {[%clk 0:00:25]} 49. Rg1 {[%clk 0:00:25]}  Be2 {[%clk 0:00:19]} 50. Qe1 {[%clk 0:00:22]}  Qg6 {[%clk 0:00:17]} 51. Rxe2 {[%clk 0:00:19]}  fxe2 {[%clk 0:00:16]} 52. Qxe2 {[%clk 0:00:19]}  Nf6 {[%clk 0:00:16]} 53. Kh1 {[%clk 0:00:16]}  Qxe4+ {[%clk 0:00:16]} 54. Rg2 {[%clk 0:00:15]}  Nxd5 {[%clk 0:00:15]} 55. Bxh6 {[%clk 0:00:12]}  Qxe2 {[%clk 0:00:16]} 56. Rxe2 {[%clk 0:00:12]}  Rxg3 {[%clk 0:00:16]} 57. Rd2 {[%clk 0:00:13]}  Rh3+ {[%clk 0:00:16]} 58. Kg2 {[%clk 0:00:12]}  Rxh4 {[%clk 0:00:17]} 59. Bf8 {[%clk 0:00:12]}  Rg4+ {[%clk 0:00:15]} 60. Kh3 {[%clk 0:00:11]}  Rd4 {[%clk 0:00:15]} 61. Ra2 {[%clk 0:00:10]}  Nf4+ {[%clk 0:00:14]} 62. Kg3 {[%clk 0:00:10]}  Kg8 {[%clk 0:00:14]} 63. Ra8 {[%clk 0:00:07]}  Kf7 {[%clk 0:00:14]} 64. Bh6 {[%clk 0:00:07]}  Ke6 {[%clk 0:00:14]} 65. Re8+ {[%clk 0:00:04]}  Kd5 {[%clk 0:00:15]} 66. Bf8 {[%clk 0:00:03]}  c4 {[%clk 0:00:15]} 67. Rd8 {[%clk 0:00:02]}  Ke6 {[%clk 0:00:14]} 0-1


[Site "https://www.chess.com"]

[Event "Titled Tuesday Blitz March 01 Early 2022"]
[White "Maranhao,Jose Renato Ruiz"]
[Black "Bortnyk, Olexandr"]
[WhiteFideId "2135175"]
[BlackFideId "14120828"]
[WhiteElo "1970"]
[BlackElo "2723"]
[Result "0-1"]
[Round "02"]
[TimeControl "180+1"]
[Date "2022.03.01"]
[WhiteClock "0:00:02"]
[BlackClock "0:02:32"]

1. e4 {[%clk 0:03:00]}  Nf6 {[%clk 0:02:59]} 2. e5 {[%clk 0:03:00]}  Nd5 {[%clk 0:02:59]} 3. d4 {[%clk 0:03:01]}  d6 {[%clk 0:02:59]} 4. c4 {[%clk 0:03:01]}  Nb6 {[%clk 0:02:59]} 5. f4 {[%clk 0:03:02]}  dxe5 {[%clk 0:02:58]} 6. fxe5 {[%clk 0:03:02]}  Bf5 {[%clk 0:02:59]} 7. Nf3 {[%clk 0:02:59]}  e6 {[%clk 0:02:59]} 8. Nc3 {[%clk 0:02:58]}  Bb4 {[%clk 0:02:58]} 9. Bd3 {[%clk 0:02:46]}  c5 {[%clk 0:02:58]} 10. Bxf5 {[%clk 0:02:39]}  cxd4 {[%clk 0:02:59]} 11. Qxd4 {[%clk 0:02:28]}  Qxd4 {[%clk 0:02:57]} 12. Nxd4 {[%clk 0:02:29]}  exf5 {[%clk 0:02:58]} 13. Nxf5 {[%clk 0:02:26]}  O-O {[%clk 0:02:58]} 14. O-O {[%clk 0:01:30]}  Nxc4 {[%clk 0:02:52]} 15. Nd5 {[%clk 0:01:22]}  Bc5+ {[%clk 0:02:50]} 16. Kh1 {[%clk 0:01:16]}  Nc6 {[%clk 0:02:51]} 17. b4 {[%clk 0:00:44]}  Nxb4 {[%clk 0:02:47]} 18. Nfe7+ {[%clk 0:00:23]}  Kh8 {[%clk 0:02:44]} 19. Bf4 {[%clk 0:00:13]}  Nd3 {[%clk 0:02:38]} 20. Bg3 {[%clk 0:00:08]}  Ncxe5 {[%clk 0:02:34]} 21. Rab1 {[%clk 0:00:02]}  b6 {[%clk 0:02:32]} 0-1


[Site "https://www.chess.com"]

[Event "Titled Tuesday Blitz March 01 Early 2022"]
[White "Martinez Alcantara, Jose Eduardo"]
[Black "Madaminov, Mukhiddin"]
[WhiteFideId "3805662"]
[BlackFideId "14210703"]
[WhiteElo "2914"]
[BlackElo "2626"]
[Result "1-0"]
[Round "02"]
[TimeControl "180+1"]
[Date "2022.03.01"]
[WhiteClock "0:00:06"]
[BlackClock "0:00:02"]

1. e4 {[%clk 0:03:00]}  e5 {[%clk 0:02:59]} 2. Nf3 {[%clk 0:03:01]}  Nc6 {[%clk 0:03:00]} 3. Bb5 {[%clk 0:03:02]}  a6 {[%clk 0:02:59]} 4. Ba4 {[%clk 0:03:02]}  Nf6 {[%clk 0:03:00]} 5. d3 {[%clk 0:03:03]}  Bc5 {[%clk 0:02:59]} 6. c3 {[%clk 0:03:03]}  d6 {[%clk 0:02:57]} 7. h3 {[%clk 0:03:01]}  O-O {[%clk 0:02:57]} 8. Bg5 {[%clk 0:03:00]}  h6 {[%clk 0:02:56]} 9. Bh4 {[%clk 0:03:01]}  Ba7 {[%clk 0:02:56]} 10. Nbd2 {[%clk 0:03:01]}  b5 {[%clk 0:02:48]} 11. Bb3 {[%clk 0:02:58]}  Qe7 {[%clk 0:02:47]} 12. O-O {[%clk 0:02:49]}  Be6 {[%clk 0:02:42]} 13. Re1 {[%clk 0:02:45]}  Bxb3 {[%clk 0:02:38]} 14. axb3 {[%clk 0:02:45]}  Qe6 {[%clk 0:02:36]} 15. Nf1 {[%clk 0:02:33]}  Ne7 {[%clk 0:02:34]} 16. d4 {[%clk 0:02:21]}  Ng6 {[%clk 0:02:26]} 17. Bxf6 {[%clk 0:02:20]}  Qxf6 {[%clk 0:02:23]} 18. Rxa6 {[%clk 0:02:11]}  Bb6 {[%clk 0:02:12]} 19. Rxa8 {[%clk 0:02:09]}  Rxa8 {[%clk 0:02:11]} 20. Ne3 {[%clk 0:01:59]}  c6 {[%clk 0:02:09]} 21. d5 {[%clk 0:01:47]}  Bxe3 {[%clk 0:01:59]} 22. fxe3 {[%clk 0:01:48]}  c5 {[%clk 0:01:58]} 23. Qe2 {[%clk 0:01:44]}  Rb8 {[%clk 0:01:51]} 24. Ra1 {[%clk 0:01:44]}  b4 {[%clk 0:01:49]} 25. Nd2 {[%clk 0:01:37]}  Qd8 {[%clk 0:01:21]} 26. Kh2 {[%clk 0:01:32]}  Ne7 {[%clk 0:01:17]} 27. Ra6 {[%clk 0:01:27]}  Nc8 {[%clk 0:01:17]} 28. Qf1 {[%clk 0:01:21]}  g6 {[%clk 0:01:15]} 29. g3 {[%clk 0:01:14]}  Kg7 {[%clk 0:01:14]} 30. h4 {[%clk 0:01:15]}  Rb7 {[%clk 0:01:06]} 31. Ra8 {[%clk 0:01:13]}  Qc7 {[%clk 0:01:01]} 32. Ra6 {[%clk 0:01:06]}  Qd8 {[%clk 0:00:59]} 33. Kg2 {[%clk 0:01:05]}  Qd7 {[%clk 0:00:57]} 34. Qe2 {[%clk 0:01:02]}  h5 {[%clk 0:00:55]} 35. Ra1 {[%clk 0:00:50]}  Ne7 {[%clk 0:00:53]} 36. Ra6 {[%clk 0:00:40]}  Nc8 {[%clk 0:00:49]} 37. Kf2 {[%clk 0:00:41]}  Qh3 {[%clk 0:00:47]} 38. Qf1 {[%clk 0:00:40]}  Qd7 {[%clk 0:00:43]} 39. Ke1 {[%clk 0:00:36]}  Ne7 {[%clk 0:00:39]} 40. Kd1 {[%clk 0:00:32]}  Ng8 {[%clk 0:00:26]} 41. Kc2 {[%clk 0:00:29]}  Nf6 {[%clk 0:00:26]} 42. Rc6 {[%clk 0:00:18]}  bxc3 {[%clk 0:00:23]} 43. bxc3 {[%clk 0:00:19]}  Qd8 {[%clk 0:00:23]} 44. Qa1 {[%clk 0:00:17]}  Qd7 {[%clk 0:00:22]} 45. Qa6 {[%clk 0:00:17]}  Ra7 {[%clk 0:00:13]} 46. Qb6 {[%clk 0:00:15]}  Ra2+ {[%clk 0:00:13]} 47. Kd3 {[%clk 0:00:13]}  Ng4 {[%clk 0:00:11]} 48. Rc7 {[%clk 0:00:09]}  Nf2+ {[%clk 0:00:10]} 49. Kc4 {[%clk 0:00:10]}  Ra4+ {[%clk 0:00:07]} 50. b4 {[%clk 0:00:07]}  Qe8 {[%clk 0:00:04]} 51. Qc6 {[%clk 0:00:07]}  Ra8 {[%clk 0:00:02]} 52. Qxe8 {[%clk 0:00:07]}  Rxe8 {[%clk 0:00:02]} 53. bxc5 {[%clk 0:00:07]}  dxc5 {[%clk 0:00:03]} 54. d6 {[%clk 0:00:07]}  Rd8 {[%clk 0:00:04]} 55. Kd5 {[%clk 0:00:05]}  Nd3 {[%clk 0:00:03]} 56. Nc4 {[%clk 0:00:06]}  Kf6 {[%clk 0:00:03]} 57. Kc6 {[%clk 0:00:04]}  Ke6 {[%clk 0:00:03]} 58. Re7+ {[%clk 0:00:04]}  Kf6 {[%clk 0:00:04]} 59. Ra7 {[%clk 0:00:05]}  Ke6 {[%clk 0:00:04]} 60. d7 {[%clk 0:00:06]}  Ke7 {[%clk 0:00:04]} 61. Nb6 {[%clk 0:00:06]}  c4 {[%clk 0:00:03]} 62. Nd5+ {[%clk 0:00:05]}  Ke6 {[%clk 0:00:04]} 63. Nb6 {[%clk 0:00:05]}  Nb2 {[%clk 0:00:03]} 64. Rc7 {[%clk 0:00:03]}  Nd1 {[%clk 0:00:03]} 65. Rc8 {[%clk 0:00:04]}  Ke7 {[%clk 0:00:03]} 66. Nd5+ {[%clk 0:00:04]}  Ke6 {[%clk 0:00:02]} 67. Rxd8 {[%clk 0:00:05]}  Nxc3 {[%clk 0:00:02]} 68. Re8# {[%clk 0:00:06]} 1-0


[Site "https://www.chess.com"]

[Event "Titled Tuesday Blitz March 01 Early 2022"]
[White "Matinian, Nikita"]
[Black "Eynullayev, Atilla"]
[WhiteFideId "24129100"]
[BlackFideId "13413570"]
[WhiteElo "2422"]
[BlackElo "1979"]
[Result "1-0"]
[Round "02"]
[TimeControl "180+1"]
[Date "2022.03.01"]
[WhiteClock "0:00:43"]
[BlackClock "0:00:08"]

1. e4 {[%clk 0:03:00]}  c5 {[%clk 0:03:00]} 2. Nc3 {[%clk 0:03:01]}  e6 {[%clk 0:02:57]} 3. f4 {[%clk 0:03:00]}  d5 {[%clk 0:02:54]} 4. Nf3 {[%clk 0:03:01]}  dxe4 {[%clk 0:02:51]} 5. Nxe4 {[%clk 0:03:01]}  Nf6 {[%clk 0:02:52]} 6. Bb5+ {[%clk 0:02:59]}  Bd7 {[%clk 0:02:48]} 7. Qe2 {[%clk 0:02:58]}  a6 {[%clk 0:02:40]} 8. Bxd7+ {[%clk 0:02:54]}  Nbxd7 {[%clk 0:02:39]} 9. d3 {[%clk 0:02:54]}  Be7 {[%clk 0:02:35]} 10. f5 {[%clk 0:02:53]}  Nxe4 {[%clk 0:02:30]} 11. fxe6 {[%clk 0:02:48]}  fxe6 {[%clk 0:01:53]} 12. Qxe4 {[%clk 0:02:46]}  Qb6 {[%clk 0:01:54]} 13. O-O {[%clk 0:02:37]}  Nf6 {[%clk 0:01:52]} 14. Qc4 {[%clk 0:02:34]}  O-O {[%clk 0:01:50]} 15. Re1 {[%clk 0:02:25]}  Nd5 {[%clk 0:01:46]} 16. Bg5 {[%clk 0:02:19]}  Bd6 {[%clk 0:01:13]} 17. Rxe6 {[%clk 0:02:15]}  Bxh2+ {[%clk 0:01:13]} 18. Kxh2 {[%clk 0:02:12]}  Qxe6 {[%clk 0:01:13]} 19. Re1 {[%clk 0:02:12]}  Qd6+ {[%clk 0:00:45]} 20. Re5 {[%clk 0:02:11]}  Rxf3 {[%clk 0:00:38]} 21. Qxd5+ {[%clk 0:02:11]}  Qxd5 {[%clk 0:00:38]} 22. Rxd5 {[%clk 0:02:12]}  Rf2 {[%clk 0:00:29]} 23. Rxc5 {[%clk 0:02:12]}  Re8 {[%clk 0:00:29]} 24. Bh4 {[%clk 0:02:03]}  Rd2 {[%clk 0:00:25]} 25. Bg5 {[%clk 0:02:02]}  Rf2 {[%clk 0:00:26]} 26. Bh4 {[%clk 0:01:30]}  Rf7 {[%clk 0:00:26]} 27. a4 {[%clk 0:01:25]}  h6 {[%clk 0:00:26]} 28. a5 {[%clk 0:01:25]}  g5 {[%clk 0:00:26]} 29. Bg3 {[%clk 0:01:24]}  Kg7 {[%clk 0:00:22]} 30. b4 {[%clk 0:01:23]}  Kg6 {[%clk 0:00:23]} 31. c4 {[%clk 0:01:22]}  h5 {[%clk 0:00:23]} 32. b5 {[%clk 0:01:22]}  h4 {[%clk 0:00:23]} 33. Be5 {[%clk 0:01:18]}  axb5 {[%clk 0:00:08]} 34. cxb5 {[%clk 0:01:19]}  Ra8 {[%clk 0:00:06]} 35. b6 {[%clk 0:01:15]}  Rd7 {[%clk 0:00:04]} 36. d4 {[%clk 0:01:14]}  Re7 {[%clk 0:00:01]} 37. Kh3 {[%clk 0:01:07]}  Rf7 {[%clk 0:00:01]} 38. Kg4 {[%clk 0:01:00]}  Raf8 {[%clk 0:00:02]} 39. Bh2 {[%clk 0:00:56]}  Rf2 {[%clk 0:00:02]} 40. Rxg5+ {[%clk 0:00:54]}  Kh6 {[%clk 0:00:03]} 41. Kxh4 {[%clk 0:00:52]}  R8f4+ {[%clk 0:00:01]} 42. Bxf4 {[%clk 0:00:52]}  Rxf4+ {[%clk 0:00:02]} 43. Rg4 {[%clk 0:00:52]}  Rf5 {[%clk 0:00:03]} 44. Re4 {[%clk 0:00:46]}  Rxa5 {[%clk 0:00:03]} 45. Re6+ {[%clk 0:00:47]}  Kg7 {[%clk 0:00:03]} 46. Re7+ {[%clk 0:00:47]}  Kf6 {[%clk 0:00:04]} 47. Rxb7 {[%clk 0:00:48]}  Rd5 {[%clk 0:00:04]} 48. g4 {[%clk 0:00:44]}  Rxd4 {[%clk 0:00:04]} 49. Rc7 {[%clk 0:00:44]}  Rb4 {[%clk 0:00:04]} 50. b7 {[%clk 0:00:45]}  Kg6 {[%clk 0:00:05]} 51. Kg3 {[%clk 0:00:43]}  Rb3+ {[%clk 0:00:05]} 52. Kf4 {[%clk 0:00:43]}  Rb4+ {[%clk 0:00:06]} 53. Ke5 {[%clk 0:00:43]}  Kg5 {[%clk 0:00:06]} 54. Kd6 {[%clk 0:00:44]}  Kxg4 {[%clk 0:00:07]} 55. Kc6 {[%clk 0:00:42]}  Rc4+ {[%clk 0:00:08]} 56. Kd7 {[%clk 0:00:43]}  Rd4+ {[%clk 0:00:08]} 57. Kc8 {[%clk 0:00:43]} 1-0


[Site "https://www.chess.com"]

[Event "Titled Tuesday Blitz March 01 Early 2022"]
[White "Mirzoev, Azer"]
[Black "Pinheiro, Iung Alicio de O."]
[WhiteFideId "13400304"]
[BlackFideId "2104350"]
[WhiteElo "2525"]
[BlackElo "2522"]
[Result "1-0"]
[Round "02"]
[TimeControl "180+1"]
[Date "2022.03.01"]
[WhiteClock "0:00:42"]
[BlackClock "0:00:04"]

1. c4 {[%clk 0:03:00]}  c5 {[%clk 0:02:59]} 2. Nc3 {[%clk 0:03:00]}  g6 {[%clk 0:02:58]} 3. g3 {[%clk 0:03:01]}  Bg7 {[%clk 0:02:58]} 4. Bg2 {[%clk 0:03:01]}  Nc6 {[%clk 0:02:58]} 5. a3 {[%clk 0:03:01]}  d6 {[%clk 0:02:55]} 6. Rb1 {[%clk 0:03:01]}  Be6 {[%clk 0:02:54]} 7. d3 {[%clk 0:03:00]}  Rb8 {[%clk 0:02:44]} 8. Nf3 {[%clk 0:02:59]}  Qc8 {[%clk 0:02:37]} 9. h4 {[%clk 0:02:55]}  a6 {[%clk 0:02:28]} 10. Ng5 {[%clk 0:02:52]}  Bd7 {[%clk 0:02:27]} 11. Bd2 {[%clk 0:02:36]}  b5 {[%clk 0:02:25]} 12. b3 {[%clk 0:02:33]}  Nf6 {[%clk 0:02:21]} 13. O-O {[%clk 0:02:23]}  O-O {[%clk 0:02:21]} 14. e3 {[%clk 0:02:21]}  Ne5 {[%clk 0:01:49]} 15. Qc2 {[%clk 0:02:18]}  Bc6 {[%clk 0:01:44]} 16. Nd5 {[%clk 0:02:17]}  Re8 {[%clk 0:01:39]} 17. Bc3 {[%clk 0:02:09]}  Ned7 {[%clk 0:01:21]} 18. Rfc1 {[%clk 0:01:49]}  e6 {[%clk 0:01:19]} 19. Nxf6+ {[%clk 0:01:47]}  Nxf6 {[%clk 0:01:19]} 20. Qb2 {[%clk 0:01:41]}  e5 {[%clk 0:01:14]} 21. Qe2 {[%clk 0:01:38]}  Bxg2 {[%clk 0:01:11]} 22. Kxg2 {[%clk 0:01:37]}  h6 {[%clk 0:01:03]} 23. Ne4 {[%clk 0:01:37]}  Qc6 {[%clk 0:00:51]} 24. Qf3 {[%clk 0:01:35]}  Nxe4 {[%clk 0:00:50]} 25. Qxe4 {[%clk 0:01:36]}  Qd7 {[%clk 0:00:40]} 26. b4 {[%clk 0:01:32]}  cxb4 {[%clk 0:00:34]} 27. axb4 {[%clk 0:01:33]}  Qe6 {[%clk 0:00:22]} 28. Qd5 {[%clk 0:01:31]}  Qxd5+ {[%clk 0:00:19]} 29. cxd5 {[%clk 0:01:31]}  Rec8 {[%clk 0:00:20]} 30. Bd2 {[%clk 0:01:30]}  f5 {[%clk 0:00:10]} 31. e4 {[%clk 0:01:29]}  h5 {[%clk 0:00:09]} 32. Ra1 {[%clk 0:01:29]}  Rxc1 {[%clk 0:00:04]} 33. Rxc1 {[%clk 0:01:26]}  Bf8 {[%clk 0:00:04]} 34. Rc6 {[%clk 0:01:24]}  Ra8 {[%clk 0:00:05]} 35. Rc7 {[%clk 0:01:19]}  Kh8 {[%clk 0:00:02]} 36. Kf3 {[%clk 0:01:18]}  Kg8 {[%clk 0:00:02]} 37. Ke2 {[%clk 0:01:18]}  fxe4 {[%clk 0:00:01]} 38. dxe4 {[%clk 0:01:18]}  Bg7 {[%clk 0:00:01]} 39. Rc6 {[%clk 0:01:03]}  Bf8 {[%clk 0:00:02]} 40. f3 {[%clk 0:00:57]}  Kf7 {[%clk 0:00:03]} 41. Rc7+ {[%clk 0:00:57]}  Ke8 {[%clk 0:00:04]} 42. Rb7 {[%clk 0:00:55]}  Be7 {[%clk 0:00:04]} 43. Kd3 {[%clk 0:00:53]}  Kd8 {[%clk 0:00:04]} 44. Bg5 {[%clk 0:00:51]}  Bxg5 {[%clk 0:00:03]} 45. hxg5 {[%clk 0:00:52]}  a5 {[%clk 0:00:04]} 46. Rg7 {[%clk 0:00:51]}  Kc8 {[%clk 0:00:03]} 47. Rxg6 {[%clk 0:00:46]}  Ra6 {[%clk 0:00:04]} 48. bxa5 {[%clk 0:00:45]}  Rxa5 {[%clk 0:00:05]} 49. Rxd6 {[%clk 0:00:44]}  Ra3+ {[%clk 0:00:05]} 50. Ke2 {[%clk 0:00:44]}  Ra2+ {[%clk 0:00:05]} 51. Kf1 {[%clk 0:00:43]}  Ra1+ {[%clk 0:00:05]} 52. Kg2 {[%clk 0:00:43]}  Ra2+ {[%clk 0:00:06]} 53. Kh3 {[%clk 0:00:43]}  b4 {[%clk 0:00:05]} 54. g6 {[%clk 0:00:43]}  Kc7 {[%clk 0:00:04]} 55. Rc6+ {[%clk 0:00:42]}  Kd7 {[%clk 0:00:04]} 56. Rb6 {[%clk 0:00:42]} 1-0


[Site "https://www.chess.com"]

[Event "Titled Tuesday Blitz March 01 Early 2022"]
[White "Miszler, Levente"]
[Black "Balaji, Aaravamudhan"]
[WhiteFideId "763276"]
[BlackFideId "436224"]
[WhiteElo "1966"]
[BlackElo "2085"]
[Result "0-1"]
[Round "02"]
[TimeControl "180+1"]
[Date "2022.03.01"]
[WhiteClock "0:00:11"]
[BlackClock "0:00:41"]

1. d4 {[%clk 0:03:00]}  g6 {[%clk 0:02:58]} 2. c4 {[%clk 0:02:58]}  Bg7 {[%clk 0:02:59]} 3. Nc3 {[%clk 0:02:59]}  d6 {[%clk 0:03:00]} 4. e4 {[%clk 0:02:57]}  Nf6 {[%clk 0:03:00]} 5. f3 {[%clk 0:02:50]}  O-O {[%clk 0:03:01]} 6. Be3 {[%clk 0:02:49]}  b6 {[%clk 0:03:00]} 7. Nge2 {[%clk 0:02:42]}  Bb7 {[%clk 0:03:00]} 8. Qd2 {[%clk 0:02:41]}  Nbd7 {[%clk 0:03:00]} 9. h4 {[%clk 0:02:40]}  h5 {[%clk 0:03:00]} 10. O-O-O {[%clk 0:02:38]}  e5 {[%clk 0:02:59]} 11. d5 {[%clk 0:02:36]}  a5 {[%clk 0:02:59]} 12. g3 {[%clk 0:02:29]}  Nc5 {[%clk 0:02:59]} 13. Bh3 {[%clk 0:02:22]}  Ba6 {[%clk 0:02:57]} 14. b3 {[%clk 0:02:13]}  a4 {[%clk 0:02:57]} 15. Kb2 {[%clk 0:02:11]}  Qb8 {[%clk 0:02:55]} 16. g4 {[%clk 0:02:10]}  hxg4 {[%clk 0:02:52]} 17. fxg4 {[%clk 0:02:08]}  Nfxe4 {[%clk 0:02:52]} 18. Nxe4 {[%clk 0:02:08]}  Nxe4 {[%clk 0:02:53]} 19. Qc2 {[%clk 0:02:07]}  Nc5 {[%clk 0:02:52]} 20. h5 {[%clk 0:02:06]}  b5 {[%clk 0:02:48]} 21. hxg6 {[%clk 0:01:58]}  axb3 {[%clk 0:02:46]} 22. gxf7+ {[%clk 0:01:50]}  Rxf7 {[%clk 0:02:46]} 23. axb3 {[%clk 0:01:46]}  bxc4 {[%clk 0:02:47]} 24. g5 {[%clk 0:01:38]}  cxb3 {[%clk 0:02:43]} 25. Qg6 {[%clk 0:01:35]}  Bxe2 {[%clk 0:02:41]} 26. Be6 {[%clk 0:01:32]}  Ra2+ {[%clk 0:01:47]} 27. Kb1 {[%clk 0:01:32]}  Ra1+ {[%clk 0:01:45]} 28. Kb2 {[%clk 0:01:18]}  e4+ {[%clk 0:00:50]} 29. Bd4 {[%clk 0:01:16]}  Nd3+ {[%clk 0:00:51]} 30. Rxd3 {[%clk 0:01:12]}  Ra2+ {[%clk 0:00:51]} 31. Kc1 {[%clk 0:00:31]}  b2+ {[%clk 0:00:45]} 32. Kb1 {[%clk 0:00:13]}  Ra1+ {[%clk 0:00:41]} 33. Kc2 {[%clk 0:00:13]}  b1=Q+ {[%clk 0:00:41]} 34. Kd2 {[%clk 0:00:11]}  Qxd3# {[%clk 0:00:41]} 0-1


[Site "https://www.chess.com"]

[Event "Titled Tuesday Blitz March 01 Early 2022"]
[White "Moskalenko, Alexander"]
[Black "Ozer, Omer Faruk"]
[WhiteFideId "4155351"]
[BlackFideId "6354564"]
[WhiteElo "2515"]
[BlackElo "2050"]
[Result "1-0"]
[Round "02"]
[TimeControl "180+1"]
[Date "2022.03.01"]
[WhiteClock "0:00:17"]
[BlackClock "0:00:03"]

1. d4 {[%clk 0:03:00]}  Nf6 {[%clk 0:02:59]} 2. Nf3 {[%clk 0:03:01]}  g6 {[%clk 0:02:57]} 3. Bg5 {[%clk 0:03:00]}  Bg7 {[%clk 0:02:57]} 4. Nbd2 {[%clk 0:03:00]}  O-O {[%clk 0:02:57]} 5. c3 {[%clk 0:03:00]}  d6 {[%clk 0:02:56]} 6. e4 {[%clk 0:03:00]}  Qe8 {[%clk 0:02:54]} 7. Bd3 {[%clk 0:02:55]}  e5 {[%clk 0:02:53]} 8. dxe5 {[%clk 0:02:55]}  dxe5 {[%clk 0:02:53]} 9. O-O {[%clk 0:02:55]}  h6 {[%clk 0:02:50]} 10. Bh4 {[%clk 0:02:55]}  Nh5 {[%clk 0:02:50]} 11. Re1 {[%clk 0:02:55]}  Nd7 {[%clk 0:02:47]} 12. Bf1 {[%clk 0:02:55]}  Nb6 {[%clk 0:02:28]} 13. a4 {[%clk 0:02:54]}  Be6 {[%clk 0:02:27]} 14. a5 {[%clk 0:02:54]}  Nd7 {[%clk 0:02:27]} 15. Nc4 {[%clk 0:02:52]}  f6 {[%clk 0:02:01]} 16. Nfd2 {[%clk 0:02:46]}  Rd8 {[%clk 0:01:58]} 17. b4 {[%clk 0:02:43]}  Rf7 {[%clk 0:01:50]} 18. Ne3 {[%clk 0:02:41]}  Nf8 {[%clk 0:01:48]} 19. Qc2 {[%clk 0:02:39]}  Rfd7 {[%clk 0:01:47]} 20. Rad1 {[%clk 0:02:39]}  Nf4 {[%clk 0:01:40]} 21. Bg3 {[%clk 0:02:23]}  Qf7 {[%clk 0:01:38]} 22. c4 {[%clk 0:02:00]}  c6 {[%clk 0:01:35]} 23. f3 {[%clk 0:02:01]}  h5 {[%clk 0:01:34]} 24. Bf2 {[%clk 0:02:01]}  Bh6 {[%clk 0:01:34]} 25. Nb3 {[%clk 0:01:58]}  b6 {[%clk 0:01:22]} 26. Rxd7 {[%clk 0:01:57]}  Rxd7 {[%clk 0:01:22]} 27. axb6 {[%clk 0:01:50]}  axb6 {[%clk 0:01:23]} 28. Ra1 {[%clk 0:01:50]}  Ra7 {[%clk 0:01:14]} 29. Rxa7 {[%clk 0:01:16]}  Qxa7 {[%clk 0:01:15]} 30. Nd1 {[%clk 0:01:17]}  Nd7 {[%clk 0:01:11]} 31. Nc3 {[%clk 0:01:07]}  Qa3 {[%clk 0:01:09]} 32. b5 {[%clk 0:01:07]}  cxb5 {[%clk 0:01:07]} 33. Nxb5 {[%clk 0:01:08]}  Qb4 {[%clk 0:01:07]} 34. Nc7 {[%clk 0:01:07]}  Nc5 {[%clk 0:00:57]} 35. Nxc5 {[%clk 0:01:02]}  bxc5 {[%clk 0:00:58]} 36. Na6 {[%clk 0:01:03]}  Qa5 {[%clk 0:00:50]} 37. Nxc5 {[%clk 0:01:03]}  Bf7 {[%clk 0:00:50]} 38. Nb3 {[%clk 0:00:51]}  Qb4 {[%clk 0:00:46]} 39. Nc1 {[%clk 0:00:50]}  Ne6 {[%clk 0:00:45]} 40. Ne2 {[%clk 0:00:43]}  Bd2 {[%clk 0:00:26]} 41. c5 {[%clk 0:00:41]}  Be1 {[%clk 0:00:26]} 42. Bxe1 {[%clk 0:00:38]}  Qxe1 {[%clk 0:00:27]} 43. c6 {[%clk 0:00:39]}  Nc7 {[%clk 0:00:23]} 44. Qc5 {[%clk 0:00:36]}  Kg7 {[%clk 0:00:21]} 45. Qb6 {[%clk 0:00:33]}  Ne6 {[%clk 0:00:14]} 46. Qb2 {[%clk 0:00:22]}  Qa5 {[%clk 0:00:12]} 47. Qc3 {[%clk 0:00:21]}  Qb6+ {[%clk 0:00:12]} 48. Kh1 {[%clk 0:00:21]}  Qf2 {[%clk 0:00:12]} 49. Qc1 {[%clk 0:00:22]}  h4 {[%clk 0:00:11]} 50. Ng1 {[%clk 0:00:22]}  Be8 {[%clk 0:00:04]} 51. c7 {[%clk 0:00:17]}  Bd7 {[%clk 0:00:02]} 52. Nh3 {[%clk 0:00:17]}  Bc8 {[%clk 0:00:03]} 53. Nxf2 {[%clk 0:00:17]} 1-0


[Site "https://www.chess.com"]